Cogmind - Beta 17 @@@ ROGUE MODE // 2026.07.13 @ 16:15:32 Player: kareds Result: Destroyed by H-88 Terminator with KE Penetrator Performance ------------- Evolutions (8) 4000 Regions Visited (16) 3200 Robots Destroyed (87) 435 Value Destroyed (3889) 3889 Prototype IDs (11) 220 Alien Tech Used (0) 0 Bonus (1300) 1300 TOTAL SCORE: 13044 Bonus ------- Registered with UFD 300 Met Optimus in HQ 500 MAIN.C Attacked Warlord 500 Cogmind --------- Core Integrity 0/1450 Matter 151/300 Energy 98/100 System Corruption 0% Temperature Cool (0) Movement Core (50) Location -2/Research Parts ------- > --- POWER (2) -------- (None) > --- PROPULSION (6) --- Centrium Leg Centrium Leg > --- UTILITY (12) ----- Enhanced Optical Array Advanced Signal Interpreter Advanced Terrain Scan Processor Advanced Transmission Jammer > --- WEAPON (3) ------- (None) > --- INVENTORY (5) ---- Improved Coolant Injector Large Storage Unit Advanced Actuator Array Heavy Proton Cannon Peak State ------------ > --- POWER ------------ Micro Fission Core Micro Fission Core > --- PROPULSION ------- Medium Treads Spiked Medium Treads Myomer Leg Myomer Leg Advanced VSS Leg Improved Thunder Leg > --- UTILITY ---------- Advanced Heat Sink Advanced Cooling System Large Storage Unit Compact Battery Enhanced Optical Array Improved Sensor Array Advanced Signal Interpreter Advanced Terrain Scan Processor Improved Core Shielding Makeshift Ablative Armor > --- WEAPON ----------- Quantum Rifle Vortex Driver Phasing Sabre > --- INVENTORY -------- Flexi-carbon Leg Improved Coolant Injector High-capacity Battery Improved Sensor Array Advanced Actuator Array Advanced Hardlight Generator Quantum Rifle Thermoblaster Vortex Catalyst Activator Dirty Datajack Phasing Sabre Sapper Charge Sapper Charge [Rating: 124] Favorites ----------- Power Micro Fission Core Engine Light Angular Momentum Engine Power Core Micro Fission Core Reactor Antimatter Reactor Propulsion Overtuned Huge Scrapsphere Treads Improved Treads Leg Advanced VSS Leg Wheel Overtuned Huge Scrapsphere Hover Unit Antigrav System Utility Large Storage Unit Device Improved Sensor Array Storage Large Storage Unit Processor Advanced Signal Interpreter Hackware Hacking Suite Protection Improved Core Shielding Weapon Quantum Rifle Energy Gun Quantum Rifle Energy Cannon Advanced Beam Cannon Ballistic Gun Assault Rifle Ballistic Cannon Heavy Gauss Cannon Launcher Mini Grenade Launcher Special Weapon Mining Laser Slashing Weapon Phasing Sabre Special Melee Weapon Dirty Datajack Build | -11 -10 -9 -9 -9 -9 -6 -5 -5 -5 -4 -4 -4 -4 -3 -3 -2 ------- Run | Yrd Mat Mat Sto Rec Scr Fac Fac Was Fac Fac Upp Upp War Pro Res Res Slots Evolved 16 | . . 2 . . . 6 2 . . 2 . . . . 2 2 Power 1 | . . . . . . . . . . . . . . . 1 . Propulsion 4 | . . . . . . 2 . . . 2 . . . . . . Utility 10 | . . 2 . . . 4 2 . . . . . . . . 2 Weapon 1 | . . . . . . . . . . . . . . . 1 . Parts Attached 172 | 7 4 6 7 6 13 16 2 1 2 24 13 . 7 4 46 14 Power 18 | 1 . . 1 . 2 3 . . . 4 1 . . . 5 1 Engine 10 | 1 . . 1 . 2 3 . . . 1 . . . . 2 . Core 3 | . . . . . . . . . . 1 1 . . . 1 . Reactor 5 | . . . . . . . . . . 2 . . . . 2 1 Propulsion 56 | 2 . . . 4 5 2 1 . 1 4 4 . 3 3 18 9 Treads 25 | 2 . . . 4 5 1 . . 1 1 3 . 1 1 1 5 Leg 17 | . . . . . . . 1 . . 1 . . 2 2 7 4 Wheel 7 | . . . . . . 1 . . . 2 . . . . 4 . Hover 7 | . . . . . . . . . . . 1 . . . 6 . Flight . | . . . . . . . . . . . . . . . . . Utility 57 | 2 1 4 2 1 2 9 1 1 1 11 6 . 1 1 13 1 Device 27 | 1 . 1 . . . 6 . 1 . 5 4 . . 1 7 1 Storage 7 | 1 1 . . . . . . . . 3 . . . . 2 . Processor 6 | . . 1 . . . 2 1 . . . 1 . . . 1 . Hackware 1 | . . . . 1 . . . . . . . . . . . . Protection 16 | . . 2 2 . 2 1 . . 1 3 1 . 1 . 3 . Artifact . | . . . . . . . . . . . . . . . . . Weapon 41 | 2 3 2 4 1 4 2 . . . 5 2 . 3 . 10 3 Energy Gun 16 | . 2 . 4 1 2 1 . . . . 2 . 1 . 2 1 Energy Cannon 13 | . . 2 . . . 1 . . . 5 . . 2 . 1 2 Ballistic Gun 5 | 2 . . . . 1 . . . . . . . . . 2 . Ballistic Cannon . | . . . . . . . . . . . . . . . . . Launcher 3 | . . . . . 1 . . . . . . . . . 2 . Special Weapon 1 | . 1 . . . . . . . . . . . . . . . Impact Weapon . | . . . . . . . . . . . . . . . . . Slashing Weapon 2 | . . . . . . . . . . . . . . . 2 . Piercing Weapon . | . . . . . . . . . . . . . . . . . Special Melee Weapon 1 | . . . . . . . . . . . . . . . 1 . Unidentified Prototypes 7 | . . 1 1 . . . . . . . . . 2 . 1 2 Corrupted Parts 8 | . . . . . . . 1 . . 1 2 . . . 4 . System Corruption 32 | . . . . . . . 6 . . 3 11 . . . 12 . Parts Lost 102 | . . . 2 2 4 . 2 1 . 14 2 5 . 1 54 15 Power 10 | . . . . . 1 . . . . 2 . . . . 6 1 Propulsion 39 | . . . . . . . . . . 4 1 3 . 1 24 6 Utility 28 | . . . 1 . 1 . . 1 . 4 1 2 . . 14 4 Weapon 25 | . . . 1 2 2 . 2 . . 4 . . . . 10 4 Highest Loss Streak 27 | . . . 1 2 4 . 1 1 . 8 1 3 . 1 27 14 To Critical Strikes 5 | . . . . . . . . 1 . . . 1 . . 1 2 Average Backups 11 | 2 8 11 14 12 11 10 11 11 11 10 10 11 11 12 9 4 Power . | . 1 1 . . . 1 2 2 2 1 1 1 1 1 . . Propulsion 1 | 1 2 2 2 3 2 2 3 3 3 . . . . . . . Utility 6 | . 3 5 7 7 6 6 6 6 5 7 8 6 5 5 5 2 Weapon 2 | . 1 3 3 2 1 . . . . 2 . 1 3 5 2 . Tool/Special . | . . . . . . . . . . . . . . . . . Unused Backups 24 | . . . 4 2 4 1 . . . 5 . 2 6 . . . Power . | . . . . . . . . . . . . . . . . . Propulsion 5 | . . . . 2 2 . . . . 1 . . . . . . Utility 9 | . . . 2 . 2 1 . . . 2 . 1 1 . . . Weapon 7 | . . . 2 . . . . . . 2 . 1 2 . . . Tool/Special 3 | . . . . . . . . . . . . . 3 . . . Average Slot Usage (%) 87 | . 98 95 97 96 99 81 79 74 79 79 88 81 77 93 83 35 Engine 5 | . 14 11 11 11 10 6 5 5 5 2 . . . . 1 . Core 2 | . . . . . . . . . . 1 5 5 5 5 3 . Treads 12 | . 27 22 22 21 22 12 8 4 3 5 10 5 . 6 4 4 Leg 3 | . . . . . . . . 5 5 2 5 5 5 14 13 4 Wheel 3 | . . . . . . 5 5 5 5 10 5 5 5 4 2 . Device 10 | . 14 21 9 . . 16 26 23 23 21 21 12 10 11 11 6 Storage 9 | . 14 11 11 11 11 6 5 5 5 7 9 10 10 10 8 . Processor 11 | . . . 11 11 11 10 16 17 17 10 12 15 15 15 14 15 Hackware 3 | . . . . 7 11 2 . . . . . . . . . . Protection 8 | . . 7 11 11 11 4 . . 2 4 4 9 14 12 6 . Energy Gun 9 | . 4 18 16 19 14 5 2 . . . 4 10 7 5 3 1 Energy Cannon 3 | . . 3 4 2 7 4 4 5 7 10 2 . 2 5 1 . Ballistic Gun 1 | . 22 . . . . 1 . . . . . . . . 1 1 Peak Build Rating 124 | 7 10 16 17 21 30 66 74 68 77 96 107 99 110 111 124 111 Average Rating 61 | 5 7 12 16 19 24 60 68 66 70 85 94 90 90 109 101 57 On Entrance 52 | . 7 10 16 16 20 30 66 68 63 77 75 99 83 110 110 34 Avg Prop Armor Cover (%) 10 | . . . . . . 12 12 11 11 7 13 6 4 10 9 24 Naked Turns . | . . . . . . . . . . . . . . . . . Heaviest Build 94 | 13 30 40 39 37 41 55 50 45 60 84 58 51 68 68 94 56 Greatest Support 128 | 40 40 40 40 46 46 30 20 20 20 40 56 56 63 88 128 75 Greatest Overweight (x) 17 | 1 3 . . 1 1 2 2 2 2 3 2 16 3 2 17 3 Average Overweight (x) . | . . . . . . 1 1 2 2 1 . 2 2 . . . Largest Inventory Capacity 15 | 8 15 15 15 15 15 15 15 15 15 15 15 15 15 15 15 15 Average Capacity 14 | 7 10 15 15 15 15 15 15 15 15 15 15 15 15 15 14 6 Most Carried 15 | 4 12 14 15 15 15 15 14 14 13 15 15 15 15 15 15 5 Average Carried 12 | 3 8 11 14 12 12 12 13 13 11 11 11 13 14 15 11 4 Final Capacity 15 | 8 15 15 15 15 15 15 15 15 15 15 15 15 15 15 5 5 Final Carried 15 | 4 12 14 15 11 13 15 14 12 13 10 11 14 15 15 5 4 Scrap Suit Usage (%) 18 | . . . . . . 99 100 97 100 99 40 . . . . . Parts Cannibalized 16 | . . . . . . 1 3 1 . 10 1 . . . . . Class Distribution -------------------- 43% | Mutant 20% | Skirmisher 17% | Scavenger-Skirmisher 5% | Scavenger-Scrapper 5% | Scavenger-Assassin 4% | Scavenger-Mutant 3% | Scrapper Dominant Class ---------------- Mutant | -10/Materials Mutant | -9/Materials Mutant | -9/Storage Mutant | -9/Recycling Mutant | -9/Scraptown Scavenger-Scrapper | -6/Factory Scrapper | -5/Factory Mutant | -5/Waste Skirmisher | -5/Factory Skirmisher | -4/Factory Scavenger-Skirmisher | -4/Upper Caves Scavenger-Skirmisher | -4/Upper Caves Skirmisher | -4/Warlord Scavenger-Skirmisher | -3/Proximity Caves Scavenger-Assassin | -3/Research Mutant | -2/Research Resources | -11 -10 -9 -9 -9 -9 -6 -5 -5 -5 -4 -4 -4 -4 -3 -3 -2 ----------- Run | Yrd Mat Mat Sto Rec Scr Fac Fac Was Fac Fac Upp Upp War Pro Res Res Matter Collected 2545 | 262 63 109 197 130 140 288 36 . . 279 185 162 86 45 486 77 Remotely . | . . . . . . . . . . . . . . . . . Salvage Created 4199 | 40 138 352 417 174 314 781 70 . . 868 264 90 . 46 645 . Parts 220 | 6 11 22 26 9 17 31 4 . . 30 13 2 . 2 47 . Haulers Intercepted 1 | . . . . . . . . . . 1 . . . . . . Recyclers Shooed 5 | . . . 2 1 . . . . . 2 . . . . . . Parts Field Recycled . | . . . . . . . . . . . . . . . . . Retrieved Matter . | . . . . . . . . . . . . . . . . . Parts Self-Destructed 14 | . . . . . . . . . . . 3 10 . 1 . . Prevented 2 | . . . . . . . . . . . 1 . . 1 . . Parts Restored . | . . . . . . . . . . . . . . . . . Kills | -11 -10 -9 -9 -9 -9 -6 -5 -5 -5 -4 -4 -4 -4 -3 -3 -2 ------- Run | Yrd Mat Mat Sto Rec Scr Fac Fac Was Fac Fac Upp Upp War Pro Res Res Combat Hostiles Destroyed 68 | . 5 7 7 3 8 13 1 . . 7 2 1 . 4 10 . Melee 3 | . . . . . . . . . . . . . . . 3 . Guns 27 | . 4 4 7 2 1 6 . . . . . . . . 3 . Cannons 23 | . . 3 . 1 . 7 . . . 6 2 . . 4 . . AOE 12 | . 1 . . . 7 . . . . 1 . . . . 3 . Classes Destroyed 21 | 1 3 2 2 . 4 3 . . . 3 1 . . 1 1 . Worker 4 | . . . . . . . . . . . . . . . 4 . Builder 2 | . . . 1 . . . . . . . . . . . 1 . Tunneler 4 | 2 . . . . . . . . . 1 . . . . 1 . Hauler 1 | . . . . . . . . . . 1 . . . . . . Recycler 2 | . . . . . . . . . . 2 . . . . . . Operator 1 | . . 1 . . . . . . . . . . . . . . Drone 2 | . . . . . . . . . . . . . . 2 . . Watcher 5 | . 1 1 1 . . 1 . . . . . . . . 1 . Swarmer 3 | . 3 . . . . . . . . . . . . . . . Grunt 14 | . 2 5 2 . . 5 . . . . . . . . . . Brawler 1 | . . . . . . 1 . . . . . . . . . . Duelist 1 | . . . 1 . . . . . . . . . . . . . Sentry 13 | . . 2 4 3 . 2 . . . 1 . 1 . . . . Specialist 4 | . . . . . . . . . . 4 . . . . . . Hunter 8 | . . . . . . 2 1 . . . . . . 1 4 . Programmer 14 | . . . . . . 3 . . . 2 2 . . 1 6 . Federalist 1 | . . . . . 1 . . . . . . . . . . . Ranger 1 | . . . . . 1 . . . . . . . . . . . Guru 3 | . . . . . 3 . . . . . . . . . . . Scrapper 3 | . . . . . 3 . . . . . . . . . . . Samaritan 3 | . . . . . . . . . . . 3 . . . . . Best Kill Streak 9 | 1 3 3 3 2 8 3 1 . . 3 1 1 . 2 9 . Combat Bots Only 8 | . 3 3 2 2 8 3 1 . . 2 1 1 . 2 5 . Max Kills in Single Turn 4 | 1 1 1 2 1 3 1 1 . . 1 1 1 . 1 4 . Gunslinging . | . . . . . . . . . . . . . . . . . Exploded 3 | . 1 . . . 3 . . . . 1 . . . . 2 . Melee 1 | . . . . . . . . . . . . . . . 1 . Uniques/NPCs Destroyed . | . . . . . . . . . . . . . . . . . Combat | -11 -10 -9 -9 -9 -9 -6 -5 -5 -5 -4 -4 -4 -4 -3 -3 -2 -------- Run | Yrd Mat Mat Sto Rec Scr Fac Fac Was Fac Fac Upp Upp War Pro Res Res Hostile Shots Fired 1687 | . 12 30 36 16 56 93 38 1 . 349 10 22 . 12 598 414 Missed 546 | . 3 10 9 3 14 41 11 . . 92 1 9 . . 215 138 Hits 1141 | . 9 20 27 13 42 52 27 1 . 257 9 13 . 12 383 276 Melee 1 | . . . . . . . . 1 . . . . . . . . Projectile 1140 | . 9 20 27 13 42 52 27 . . 257 9 13 . 12 383 276 Critical Strikes 46 | . . 2 . 1 1 2 2 1 . 2 . 1 . . 26 8 Actively Blocked 1 | . . . . . . . . . . . . . . . 1 . Damage Taken 20952 | . 92 254 394 192 760 693 505 43 . 3870 181 272 . 211 8003 5482 Core 3322 | . 30 40 . . 168 110 36 . . 290 30 . . 26 1131 1461 Absorbed by Shields 240 | . . . . . . . . . . . . . . . . 240 Reduced by Siege Mode 67 | . . . . . . . . . . . . . . . . 67 Redirected to Shielding 105 | . . . . . . . . . . 6 12 . . 10 77 . Regen/Repaired (Parts) 226 | . . . . . . 10 17 10 . 88 10 . 91 . . . Core Remaining (%) 71 | 100 88 . . . 48 87 . . 96 . . . . 69 13 . Volleys Fired 272 | 2 12 15 21 6 7 53 7 . . 63 16 8 . 6 47 9 Largest 2 | 2 2 2 2 2 2 2 2 . . 2 2 2 . 2 2 2 Hottest 354 | 40 120 124 90 90 100 185 185 . . 195 132 188 . 194 354 100 Shots Fired 472 | 4 24 26 39 10 11 100 12 . . 99 26 18 . 12 76 15 Gun 262 | 4 22 19 39 9 6 58 5 . . . 2 18 . 6 59 15 Cannon 199 | . . 7 . 1 . 42 7 . . 99 24 . . 6 13 . Launcher 9 | . . . . . 5 . . . . . . . . . 4 . Special 2 | . 2 . . . . . . . . . . . . . . . Kinetic 59 | 4 14 . . . . 7 . . . . 5 . . . 23 6 Thermal 247 | . 2 1 . 1 . 93 10 . . 83 2 18 . 6 22 9 Explosive 5 | . . . . . 5 . . . . . . . . . . . Electromagnetic 140 | . 8 25 39 9 6 . 2 . . 16 19 . . . 16 . Entropic 21 | . . . . . . . . . . . . . . 6 15 . Robot Hit Streak 16 | 3 8 10 16 11 9 10 11 . . 13 5 8 . 5 5 3 Robot Miss Streak 5 | 1 3 2 2 2 1 3 1 . . 4 2 1 . 2 5 3 Penetration Max 1 | . . . . . . . . . . . . . . . 1 1 Secondary Targets 3 | . 1 2 . . . . . . . . . . . . . . Max Gunslinging Chain 1 | . 1 1 . . . . . . . . . . . . . . Shots Hit Robots 326 | 3 11 22 36 9 9 62 11 . . 60 16 11 . 8 60 8 Core Hits 162 | 3 7 16 23 7 13 24 1 . . 22 8 1 . 5 27 5 Critical Kills 1 | . 1 . . . . . . . . . . . . . . . Critical Parts Destroyed . | . . . . . . . . . . . . . . . . . Critical Strikes 19 | . 1 . . . . 8 1 . . 1 1 . . 5 2 . Burn 9 | . . . . . . 8 1 . . . . . . . . . Destroy 1 | . 1 . . . . . . . . . . . . . . . Blast 1 | . . . . . . . . . . . 1 . . . . . Corrupt 1 | . . . . . . . . . . 1 . . . . . . Sever 1 | . . . . . . . . . . . . . . . 1 . Sunder 6 | . . . . . . . . . . . . . . 5 1 . Melee Attacks 42 | . . . . . . . . . . . . . . . 42 . Impact . | . . . . . . . . . . . . . . . . . Slashing 39 | . . . . . . . . . . . . . . . 39 . Piercing 3 | . . . . . . . . . . . . . . . 3 . Sneak Attacks 2 | . . . . . . . . . . . . . . . 2 . Combat Hostiles . | . . . . . . . . . . . . . . . . . Follow-up Attacks . | . . . . . . . . . . . . . . . . . Damage Inflicted 11712 | 44 183 352 809 166 675 1827 345 . . 2043 473 311 . 583 3563 338 Guns 4008 | 43 159 231 622 145 75 952 113 . . . . 311 . 55 966 336 Cannons 4477 | . . 121 . 21 . 875 232 . . 1897 473 . . 528 330 . Explosions 2310 | . 24 . 187 . 600 . . . . 146 . . . . 1353 . Melee 909 | . . . . . . . . . . . . . . . 909 . Ramming 8 | 1 . . . . . . . . . . . . . . 5 2 Kinetic 943 | 43 69 . . . . 97 . . . . 144 . . . 528 62 Thermal 5143 | . 24 . 187 21 . 1730 265 . . 1894 . 311 . 55 382 274 Explosive 600 | . . . . . 600 . . . . . . . . . . . Electromagnetic 2039 | . 90 352 622 145 75 . 80 . . 149 329 . . . 197 . Impact . | . . . . . . . . . . . . . . . . . Slashing 904 | . . . . . . . . . . . . . . . 904 . Piercing 5 | . . . . . . . . . . . . . . . 5 . Entropic 2070 | . . . . . . . . . . . . . . 528 1542 . Highest Corruption 38 | . . . . . 1 2 6 14 14 15 27 22 22 1 38 . Average Corruption 15 | . . . . . 1 1 6 12 14 6 24 22 22 1 17 . Corruption Purged 5 | . . . . . . . . . . . 5 . . . . . Corruption Blocked . | . . . . . . . . . . . . . . . . . Effects 165 | . . . . . . 8 2 5 4 13 44 59 4 2 24 . Message Errors 36 | . . . . . . 2 . . 2 3 13 12 1 . 3 . Matter Fused 39 | . . . . . . 3 1 . . 5 9 14 . . 7 . Heat Flow Errors 20 | . . . . . . 1 . 3 1 . 5 8 . . 2 . Energy Discharges 28 | . . . . . . 2 1 1 1 1 3 11 2 1 5 . Parts Fused 1 | . . . . . . . . . . . 1 . . . . . Data Loss (minor) 15 | . . . . . . . . . . . 4 9 . 1 1 . Data Loss (major) 5 | . . . . . . . . . . . 1 2 . . 2 . Misfires 8 | . . . . . . . . . . 1 5 2 . . . . Alerts 7 | . . . . . . . . . . 1 3 1 1 . 1 . Misdirections 5 | . . . . . . . . 1 . 1 . . . . 3 . Weapon Failures 1 | . . . . . . . . . . 1 . . . . . . Overload Shots . | . . . . . . . . . . . . . . . . . Overflow Damage 389 | . . . 22 . 15 33 . . . 34 18 . . . 267 . Projectiles 117 | . . . . . . 33 . . . 18 18 . . . 48 . Explosions 251 | . . . 22 . 15 . . . . 16 . . . . 198 . Melee 21 | . . . . . . . . . . . . . . . 21 . Knockbacks 1 | . . . . . . . . . . . 1 . . . . . Impact . | . . . . . . . . . . . . . . . . . Kinetic 1 | . . . . . . . . . . . 1 . . . . . Secondary . | . . . . . . . . . . . . . . . . . Self-Inflicted Damage 277 | . . . 20 . 34 . . . . 58 . . . . 165 . Shots 6 | . . . 1 . 2 . . . . 2 . . . . 1 . Rammed 5 | 1 . . . . . . . . . . . . . . 1 3 Targets Rammed 5 | 1 . . . . . . . . . . . . . . 1 3 Kicked . | . . . . . . . . . . . . . . . . . Crushed . | . . . . . . . . . . . . . . . . . Highest Temperature 519 | . 150 150 237 171 113 519 287 182 89 330 215 204 . 24 470 . Average Temperature 118 | . 60 56 86 84 53 169 127 90 89 133 116 69 . 14 114 . Received Heat Transfer 3020 | . 30 135 132 63 349 189 216 . . 1176 . 27 . . 685 18 Effects 10 | . . . . . . 9 . . . . . . . . 1 . Energy Bleed 2 | . . . . . . 2 . . . . . . . . . . Interference 5 | . . . . . . 5 . . . . . . . . . . Matter Decay 3 | . . . . . . 2 . . . . . . . . 1 . Siege Activations 1 | . . . . . . . . . . . . . . . . 1 Total Turns 7 | . . . . . . . . . . . . . . . . 7 Longest Duration 7 | . . . . . . . . . . . . . . . . 7 Martial Activations . | . . . . . . . . . . . . . . . . . Shielding Activations . | . . . . . . . . . . . . . . . . . Robots Disrupted 1 | . . . 1 . . . . . . . . . . . . . Combat Hostiles 1 | . . . 1 . . . . . . . . . . . . . Robots Corrupted 2 | . . . . . . . 1 . . . . . . . 1 . Combat Hostiles 2 | . . . . . . . 1 . . . . . . . 1 . Parts Fried 16 | . . . 6 1 1 . 3 . . . 4 . . . 1 . Impact Corruptions . | . . . . . . . . . . . . . . . . . Robots Melted 1 | . . . . . . . . . . . . 1 . . . . Combat Hostiles 1 | . . . . . . . . . . . . 1 . . . . Parts Melted 17 | . . . 1 . 1 9 1 . . 3 . 2 . . . . Heat Transferred 7404 | . 50 . 350 37 . 3299 485 . . 1913 . 407 . 74 456 333 Parts Sabotaged . | . . . . . . . . . . . . . . . . . Parts Stolen . | . . . . . . . . . . . . . . . . . Parts Stripped . | . . . . . . . . . . . . . . . . . Power Chain Reactions 5 | . 1 . 4 . . . . . . . . . . . . . Alert | -11 -10 -9 -9 -9 -9 -6 -5 -5 -5 -4 -4 -4 -4 -3 -3 -2 ------- Run | Yrd Mat Mat Sto Rec Scr Fac Fac Was Fac Fac Upp Upp War Pro Res Res Maximum Alert Level 1 | . . . . . . . 1 . . . . . . . . . Low Security (%) 99 | 100 100 100 100 100 . 100 83 100 100 100 . . . . 100 100 Level 1 . | . . . . . . . 16 . . . . . . . . . Level 2 . | . . . . . . . . . . . . . . . . . Level 3 . | . . . . . . . . . . . . . . . . . Level 4 . | . . . . . . . . . . . . . . . . . Level 5 . | . . . . . . . . . . . . . . . . . High Security . | . . . . . . . . . . . . . . . . . Max Security . | . . . . . . . . . . . . . . . . . Peak Influence 290 | 5 70 77 117 37 . 150 290 98 26 169 . . . . 159 130 Initial 150 | . . 17 24 37 . . 55 98 26 . . . . . 150 56 Average 41 | . 12 22 51 3 . 62 82 74 10 55 . . . . 59 30 Influence Increases 2831 | 10 144 203 232 72 . 398 352 . . 383 60 20 30 70 701 156 Destroy 0b10 Robot/C 1160 | . 100 140 140 60 . 260 20 . . 140 40 20 . 40 200 . Destroy 0b10 Robot/NC 105 | 10 5 10 10 . . 5 . . . 20 . . . 10 35 . Destroy Leader 312 | . 22 32 52 . . 72 10 . . 42 20 . . 20 42 . Successful Hack 49 | . . 6 . 12 . 12 5 . . . . . . . 14 . Disable Machine 150 | . 15 . . . . 30 . . . 75 . . . . 30 . Destroy Structure 260 | . 2 . 15 . . 19 2 . . 106 . . . . 110 6 Advance Influence 150 | . . . . . . . . . . . . . . . 150 . Partial Spotted 15 | . . . . . . . . . . . . . . . 15 . Lose Combat Pursuer 630 | . . 15 15 . . . 315 . . . . . 30 . 105 150 Influence Decreases 2711 | 10 101 188 193 169 . 284 186 242 38 383 60 20 15 85 600 137 Entered New Map 433 | . . 26 34 60 . . 59 182 12 . . . . 15 . 45 Time Decay 1827 | 10 101 162 144 97 . 284 107 50 26 246 60 20 15 70 369 66 Lost Part 451 | . . . 15 12 . . 20 10 . 137 . . . . 231 26 Squads Dispatched 28 | . 2 2 . . . 5 3 . . 4 . . . . 6 6 Investigation 6 | . 1 1 . . . . 3 . . . . . . . 1 . Extermination 7 | . . . . . . 3 . . . 1 . . . . 2 1 Reinforcement 14 | . 1 1 . . . 1 . . . 3 . . . . 3 5 Assault . | . . . . . . . . . . . . . . . . . Garrison 1 | . . . . . . 1 . . . . . . . . . . Intercept . | . . . . . . . . . . . . . . . . . Searches Triggered . | . . . . . . . . . . . . . . . . . Construction Impeded 2 | . . . . . . . . . . 1 . . . . . 1 Haulers Reinforced 2 | . . . . . . 1 . . . . . . . . 1 . Active Scanning Responses . | . . . . . . . . . . . . . . . . . Cargo Convoy Interrupts . | . . . . . . . . . . . . . . . . . Stealth | -11 -10 -9 -9 -9 -9 -6 -5 -5 -5 -4 -4 -4 -4 -3 -3 -2 --------- Run | Yrd Mat Mat Sto Rec Scr Fac Fac Was Fac Fac Upp Upp War Pro Res Res Distress Signals 8 | . . 1 1 . . 1 . . . . . . . . 3 2 Communications Jammed . | . . . . . . . . . . . . . . . . . Distress Signals . | . . . . . . . . . . . . . . . . . Times Spotted 183 | . 6 14 9 3 20 15 20 4 . 11 2 3 9 3 38 26 Peak Tracking Total 14 | . 3 4 4 2 9 4 9 4 . 2 1 2 9 1 11 14 Tactical Retreats 15 | . . 1 1 . 2 . 5 . . . . . 1 . 2 3 Traps | -11 -10 -9 -9 -9 -9 -6 -5 -5 -5 -4 -4 -4 -4 -3 -3 -2 ------- Run | Yrd Mat Mat Sto Rec Scr Fac Fac Was Fac Fac Upp Upp War Pro Res Res Traps Triggered 14 | . 4 1 . . . 1 6 . 1 . . . . . 1 . Indirectly . | . . . . . . . . . . . . . . . . . Trap Hack Attempts . | . . . . . . . . . . . . . . . . . Triggered . | . . . . . . . . . . . . . . . . . Disarmed . | . . . . . . . . . . . . . . . . . Reprogrammed . | . . . . . . . . . . . . . . . . . Reused . | . . . . . . . . . . . . . . . . . Traps Extracted . | . . . . . . . . . . . . . . . . . Installed . | . . . . . . . . . . . . . . . . . Triggered . | . . . . . . . . . . . . . . . . . Most Traps Carried 2 | . . . . . . . . . . . . 2 2 . . . Time Bombs Activated 2 | . . . . . . . . . . . . . . . 2 . Exploded 2 | . . . . . . . . . . . . . . . 2 . Machines | -11 -10 -9 -9 -9 -9 -6 -5 -5 -5 -4 -4 -4 -4 -3 -3 -2 ---------- Run | Yrd Mat Mat Sto Rec Scr Fac Fac Was Fac Fac Upp Upp War Pro Res Res Machines Disabled 10 | . 1 . . . . 2 . . . 5 . . . . 2 . Max in Single Turn 4 | . 1 . . . . 1 . . . 4 . . . . 1 . Machines Repaired . | . . . . . . . . . . . . . . . . . Machines Dismantled . | . . . . . . . . . . . . . . . . . Machines Sabotaged . | . . . . . . . . . . . . . . . . . Overloaded Fab Kills . | . . . . . . . . . . . . . . . . . Hacking | -11 -10 -9 -9 -9 -9 -6 -5 -5 -5 -4 -4 -4 -4 -3 -3 -2 --------- Run | Yrd Mat Mat Sto Rec Scr Fac Fac Was Fac Fac Upp Upp War Pro Res Res Machines Accessed 33 | . . 3 . 6 8 1 4 . . 1 1 1 2 . 4 2 Terminals 11 | . . 2 . 5 . . 1 . . 1 . . . . 2 . Fabricators . | . . . . . . . . . . . . . . . . . Repair Stations 1 | . . . . . . . . . . . . . . . . 1 Recycling Units 4 | . . . . . . . 3 . . . . . . . 1 . Scanalyzers 4 | . . 1 . . . 1 . . . . . . . . 1 1 Garrison Access . | . . . . . . . . . . . . . . . . . Total Hacks 84 | . . 8 . 12 41 2 5 . . 1 1 1 2 . 7 4 Successful 61 | . . 3 . 5 41 1 4 . . . 1 1 2 . 2 1 Failed 22 | . . 4 . 7 . 1 1 . . 1 . . . . 5 3 Catastrophic 3 | . . . . 1 . 1 . . . . . . . . 1 . Database Lockouts 1 | . . 1 . . . . . . . . . . . . . . Manual 15 | . . 7 1 . . . 3 . . . . . . . 4 . Terminals 23 | . . 6 . 11 . . 2 . . 1 . . . . 3 . Fabricators . | . . . . . . . . . . . . . . . . . Repair Stations 2 | . . . . . . . . . . . . . . . . 2 Recycling Units 6 | . . . . . . . 3 . . . . . . . 3 . Scanalyzers 7 | . . 2 . . . 2 . . . . . . . . 1 2 Garrison Access . | . . . . . . . . . . . . . . . . . Terminal Hacks 53 | . . 1 . 5 41 . 1 . . . 1 1 2 . 1 . Record 35 | . . . . . 35 . . . . . . . . . . . Robot Schematic 1 | . . . . 1 . . . . . . . . . . . . Robot Analysis 7 | . . 1 . . 6 . . . . . . . . . . . Prototype ID Bank 2 | . . . . 2 . . . . . . . . . . . . Open Door 4 | . . . . . . . . . . . 1 1 2 . . . Open DSF 1 | . . . . . . . 1 . . . . . . . . . Hauler Manifests 1 | . . . . 1 . . . . . . . . . . . . Zone Layout 1 | . . . . . . . . . . . . . . . 1 . Release Object 1 | . . . . 1 . . . . . . . . . . . . Fabricator Hacks . | . . . . . . . . . . . . . . . . . Repair Station Hacks . | . . . . . . . . . . . . . . . . . Recycling Unit Hacks . | . . . . . . . . . . . . . . . . . Scanalyzer 3 | . . 1 . . . 1 . . . . . . . . . 1 Retrieve Study 3 | . . 1 . . . 1 . . . . . . . . . 1 Garrison Access Hacks . | . . . . . . . . . . . . . . . . . Unauthorized Hacks 5 | . . 1 . . . . 3 . . . . . . . 1 . Terminals 1 | . . 1 . . . . . . . . . . . . . . Operators 1 | . . 1 . . . . . . . . . . . . . . Fabricators . | . . . . . . . . . . . . . . . . . Repair Stations . | . . . . . . . . . . . . . . . . . Recycling Units 4 | . . . . . . . 3 . . . . . . . 1 . Fedlink 4 | . . . . . . . 3 . . . . . . . 1 . Scanalyzers . | . . . . . . . . . . . . . . . . . Garrison Access . | . . . . . . . . . . . . . . . . . Data Cores Recovered . | . . . . . . . . . . . . . . . . . Used . | . . . . . . . . . . . . . . . . . Hacking Detections 14 | . . 2 . 5 . 1 1 . . . . . . . 3 2 Full Trace Events . | . . . . . . . . . . . . . . . . . Feedback Events . | . . . . . . . . . . . . . . . . . Feedback Blocked . | . . . . . . . . . . . . . . . . . Robot Schematics Acquired 1 | . . . . 1 . . . . . . . . . . . . Robots Built . | . . . . . . . . . . . . . . . . . Authchips . | . . . . . . . . . . . . . . . . . Time . | . . . . . . . . . . . . . . . . . Total Robot Build Rating . | . . . . . . . . . . . . . . . . . Part Schematics Acquired . | . . . . . . . . . . . . . . . . . Parts Built . | . . . . . . . . . . . . . . . . . Authchips . | . . . . . . . . . . . . . . . . . Time . | . . . . . . . . . . . . . . . . . Total Part Build Rating . | . . . . . . . . . . . . . . . . . Part Studies Acquired 3 | . . 1 . . . 1 . . . . . . . . . 1 Parts Repaired . | . . . . . . . . . . . . . . . . . Time . | . . . . . . . . . . . . . . . . . Parts Recycled . | . . . . . . . . . . . . . . . . . Recycled Matter . | . . . . . . . . . . . . . . . . . Retrieved Matter . | . . . . . . . . . . . . . . . . . Retrieved Components . | . . . . . . . . . . . . . . . . . Parts Scanalyzed . | . . . . . . . . . . . . . . . . . Part Schematics Acquired . | . . . . . . . . . . . . . . . . . Parts Damaged . | . . . . . . . . . . . . . . . . . Bothacking | -11 -10 -9 -9 -9 -9 -6 -5 -5 -5 -4 -4 -4 -4 -3 -3 -2 ------------ Run | Yrd Mat Mat Sto Rec Scr Fac Fac Was Fac Fac Upp Upp War Pro Res Res Used RIF Installer . | . . . . . . . . . . . . . . . . . Robots Hacked . | . . . . . . . . . . . . . . . . . Non-combat . | . . . . . . . . . . . . . . . . . Combat . | . . . . . . . . . . . . . . . . . Robot Hacks Applied . | . . . . . . . . . . . . . . . . . Relay Couplers Released . | . . . . . . . . . . . . . . . . . Fabnet Peak Effective % . | . . . . . . . . . . . . . . . . . Robots Rewired . | . . . . . . . . . . . . . . . . . Allies Hacked . | . . . . . . . . . . . . . . . . . Hacks Repelled . | . . . . . . . . . . . . . . . . . Allies | -11 -10 -9 -9 -9 -9 -6 -5 -5 -5 -4 -4 -4 -4 -3 -3 -2 -------- Run | Yrd Mat Mat Sto Rec Scr Fac Fac Was Fac Fac Upp Upp War Pro Res Res Total Allies 1 | . . . . . . . . . . . . . . . 1 . Largest Group 1 | . . . . . . . . . . . . . . . 1 . Highest-Rated Group 116 | . . . . . . . . . . . . . . . 116 . Highest-Rated Ally 116 | . . . . . . . . . . . . . . . 116 . Initial UFD Resources 60 | . . . . . . 23 25 41 41 43 43 43 43 46 46 60 Total Orders . | . . . . . . . . . . . . . . . . . Ally Attacks . | . . . . . . . . . . . . . . . . . Total Damage . | . . . . . . . . . . . . . . . . . Kills . | . . . . . . . . . . . . . . . . . Allies Corrupted . | . . . . . . . . . . . . . . . . . Allies Melted 2 | . . . . . 2 . . . . . . . . . . . Intel | -11 -10 -9 -9 -9 -9 -6 -5 -5 -5 -4 -4 -4 -4 -3 -3 -2 ------- Run | Yrd Mat Mat Sto Rec Scr Fac Fac Was Fac Fac Upp Upp War Pro Res Res Active Infowar (turns) 8740 | 36 445 485 316 . . 691 240 103 89 712 879 1197 1768 611 1068 100 Optics 5003 | . . . . . . . . . . . 361 1197 1768 611 966 100 Sensors 7539 | . . 485 316 . . 551 238 103 89 433 740 1197 1768 611 1008 . Terrain 2804 | . . . . . . 140 240 103 89 712 879 641 . . . . Structural 35 | . . . . . . . . . . . . . . . 35 . Seismic 942 | 36 445 461 . . . . . . . . . . . . . . Jamming 30 | . . . . . . . . . . . . . . . . 30 Robot Analysis Total 7 | . . 1 . . 6 . . . . . . . . . . . Derelict Logs Recovered 3 | . . . . . . . . . . . 2 1 . . . . Drone Launches . | . . . . . . . . . . . . . . . . . Drone Recoveries . | . . . . . . . . . . . . . . . . . Exploration | -11 -10 -9 -9 -9 -9 -6 -5 -5 -5 -4 -4 -4 -4 -3 -3 -2 ------------- Run | Yrd Mat Mat Sto Rec Scr Fac Fac Was Fac Fac Upp Upp War Pro Res Res Turns Passed 13290 | 112 445 485 375 916 2772 971 243 103 89 712 879 1197 1768 611 1294 318 Spaces Moved 7722 | 61 238 219 169 547 1698 845 234 114 84 523 581 484 563 337 737 288 Core 299 | 6 1 . . . . . . . . . . 58 . . 88 146 Treads 3709 | 55 237 219 169 547 1698 1 . . . . 368 355 . 40 3 17 Legs 1437 | . . . . . . . . . . . . . 492 297 523 125 Wheels 2250 | . . . . . . 844 234 114 84 523 213 71 71 . 96 . Hover 27 | . . . . . . . . . . . . . . . 27 . Flight . | . . . . . . . . . . . . . . . . . Fastest Speed 50 | 50 160 160 160 160 140 90 80 90 90 84 90 90 90 110 50 50 Average Speed 149 | 150 160 160 160 161 159 90 89 90 90 89 137 232 309 152 113 83 Slowest Speed 900 | 160 200 160 160 240 210 240 90 90 90 100 240 850 360 260 900 200 Overloaded Moves . | . . . . . . . . . . . . . . . . . Propulsion Burnouts . | . . . . . . . . . . . . . . . . . Robots Hopped . | . . . . . . . . . . . . . . . . . Potential Cave-ins 6 | . . . . . . . . . . 6 . . . . . . Cave-ins Triggered . | . . . . . . . . . . . . . . . . . Exploration Rate (%) 40 | 5 47 18 28 99 93 23 9 70 2 6 74 54 81 48 16 21 Regions Visited 16 Branch Regions 7 Pre-discovered Areas 2 | . . . . . . . 1 . . . 1 . . . . . Known Exits Taken 8 | . . . . . . 1 . . 1 1 1 1 1 1 1 . Unknown Exits Taken 6 | 1 1 1 1 1 1 . . . . . . . . . . . Scrap Searched 9 | . . . . . 5 . . . . . 2 1 . 1 . . Spaces Dug 25 | . . . . . . . . . . 6 . 2 . . 17 . Terrain Destroyed 228 | . 1 . 16 . 33 16 1 . . 82 3 6 . 10 59 1 Melee 10 | . . . . . . . . . . . . . . . 10 . Projectile 84 | . . . . . . 16 1 . . 29 3 6 . 10 19 . AOE 133 | . 1 . 16 . 33 . . . . 53 . . . . 30 . Terrain Rammed . | . . . . . . . . . . . . . . . . . Walls Destroyed . | . . . . . . . . . . . . . . . . . Machines Disabled . | . . . . . . . . . . . . . . . . . Actions | -11 -10 -9 -9 -9 -9 -6 -5 -5 -5 -4 -4 -4 -4 -3 -3 -2 --------- Run | Yrd Mat Mat Sto Rec Scr Fac Fac Was Fac Fac Upp Upp War Pro Res Res Total 8927 | 74 269 326 238 574 1751 979 256 114 96 664 637 540 591 421 1051 346 Wait 494 | . . 83 25 . 8 49 7 . 8 27 15 33 6 72 147 14 Move 7708 | 61 237 218 168 546 1697 844 234 113 83 522 580 483 562 336 736 288 Hop . | . . . . . . . . . . . . . . . . . Pick Up 72 | 4 8 3 8 . 7 7 1 . 2 10 5 7 7 . 3 . Fast Attach 99 | 7 5 1 1 1 4 5 5 . 2 6 6 . 5 4 33 14 Attach 58 | . . 1 1 3 2 3 2 1 1 10 4 1 . . 20 9 Detach 25 | . . . . . . 3 . . . 3 2 . 1 . 8 8 Swap 59 | . 6 4 5 3 7 9 . . . 12 5 . 2 1 5 . Drop 71 | . 1 1 9 5 15 6 . . . 10 4 3 8 2 6 1 Fire 272 | 2 12 15 21 6 7 53 7 . . 63 16 8 . 6 47 9 Melee 42 | . . . . . . . . . . . . . . . 42 . Ram 2 | . . . . . . . . . . 1 . . . . 1 . Kick . | . . . . . . . . . . . . . . . . . Crush 3 | . . . . . . . . . . . . . . . . 3 Escape Stasis . | . . . . . . . . . . . . . . . . . Rewire 19 | . . . . 10 4 . . . . . . 4 . . 1 . Trap 2 | . . . . . . . . . . . . . . . 2 . Miscellaneous 1 | . . . . . . . . . . . . 1 . . . . Route ------- -11/Scrapyard -10/Materials (discovered 3 exits: *Mat / [*Min x2]) -9/Materials -9/Storage -9/Recycling (discovered 2 exits: [*Fac] / *Scr) -9/Scraptown (discovered 2 exits: *Fac x2) -6/Factory -5/Factory -5/Waste -5/Factory -4/Factory -4/Upper Caves -4/Upper Caves -4/Warlord -3/Proximity Caves -3/Research -2/Research History --------- Turn | Location | Event 10 | -11/Scrapyard | Discovered new exit (range 16) 113 | -11/Scrapyard | Entered Materials 269 | -10/Materials | Discovered new exit (range 11) 306 | -10/Materials | Build established: Mutant 331 | -10/Materials | Discovered new exit (range 16) 458 | -10/Materials | Discovered new exit (range 15) 558 | -10/Materials | Entered another Materials area 558 | -9/Materials | Evolved 2 slots: Utility x2 559 | -9/Materials | Discovered new exit (range 7) 783 | -9/Materials | Central database locked down 1043 | -9/Materials | Entered Storage 1407 | -9/Storage | Used back door to open Recycling access 1407 | -9/Storage | Discovered new exit (range 5) 1418 | -9/Storage | Entered Recycling 2198 | -9/Recycling | Discovered new exit (range 8) 2279 | -9/Recycling | Scanned before Scraplab entrance 2303 | -9/Recycling | Entered Scraplab 2321 | -9/Recycling | Discovered new exit (range 2) 2334 | -9/Recycling | Entered Scraptown 2808 | -9/Scraptown | Visited Awakened 2870 | -9/Scraptown | Visited SPCMW 2917 | -9/Scraptown | Visited Comm Corps 2994 | -9/Scraptown | Visited IN-MT5's Study 3306 | -9/Scraptown | Discovered new exit (range 13) 3456 | -9/Scraptown | Visited CPS Storage 3470 | -9/Scraptown | Visited Shadow of the Wyrm 3485 | -9/Scraptown | Visited Cyclists 3536 | -9/Scraptown | Visited UFD Registry 3536 | -9/Scraptown | Registered with UFD as "Cogforce" 3594 | -9/Scraptown | Visited Derelict Rescue Squad 3608 | -9/Scraptown | Found DRS Beacon 3649 | -9/Scraptown | Visited Abandonware Association 3676 | -9/Scraptown | Learned abandonware demo "POISON.EXE" 3972 | -9/Scraptown | Visited DA-N13 Charitable Foundation 3979 | -9/Scraptown | Found DCF Scrap (30 items) 4091 | -9/Scraptown | Visited Analyses Database 4135 | -9/Scraptown | Visited Supply Room 4217 | -9/Scraptown | Visited Curators Association 4310 | -9/Scraptown | Visited Junk Repository 4366 | -9/Scraptown | Visited Scrapoid Research Area 4423 | -9/Scraptown | Visited Modified Component R&D 4713 | -9/Scraptown | Discovered new exit (range 3) 4790 | -9/Scraptown | Found Scrap Suit 4794 | -9/Scraptown | Found Scrap Suit 4881 | -9/Scraptown | Met Optimus 4881 | -9/Scraptown | Accepted into 0bPrime 4983 | -9/Scraptown | Civil war broke out across Scraptown 5056 | -9/Scraptown | Core integrity fell below 50% 5064 | -9/Scraptown | Destroyed 8 combat bots 5067 | -9/Scraptown | Lost 9 allies 5094 | -9/Scraptown | Lost 4 parts (1p1u2w) 5106 | -9/Scraptown | Entered Factory 5106 | -6/Factory | Evolved 6 slots: Propulsion x2, Utility x4 5140 | -6/Factory | Garrison activated, responded to threat 5309 | -6/Factory | Build established: Scavenger-Scrapper 5646 | -6/Factory | Allied Derelicts emerged from ambush trap array 5782 | -6/Factory | Lost 3 allies 6061 | -6/Factory | Build established: Scrapper 6065 | -6/Factory | Discovered new exit (range 14) 6075 | -6/Factory | Identified exit to Factory 6077 | -6/Factory | Entered another Factory area 6077 | -5/Factory | Evolved 2 slots: Utility x2 6133 | -5/Factory | Loaded intel: 8 recycling unit locations 6213 | -5/Factory | Learned location of Protoforge (-3) 6320 | -5/Factory | Sucked down chute 6320 | -5/Factory | Entered Waste 6335 | -5/Waste | EMP discharged 6335 | -5/Waste | System corruption reached 10% 6344 | -5/Waste | Spotted C-40 Crusher 6360 | -5/Waste | Spotted C-40 Crusher 6366 | -5/Waste | Spotted C-40 Crusher 6370 | -5/Waste | Spotted C-40 Crusher 6391 | -5/Waste | Spotted C-40 Crusher 6401 | -5/Waste | Crushed by Compactor (0 parts destroyed, 1 dropped) 6412 | -5/Waste | Discovered new exit (range 10) 6421 | -5/Waste | Identified exit to Factory 6423 | -5/Waste | Entered Factory 6441 | -5/Factory | Discovered new exit (range 9) 6482 | -5/Factory | Identified exit to Factory 6512 | -5/Factory | Entered another Factory area 6512 | -4/Factory | Evolved 2 slots: Propulsion x2 6615 | -4/Factory | Discovered new exit (range 16) 6773 | -4/Factory | Build established: Skirmisher 6925 | -4/Factory | Lost 8 parts (2p3n2u1w) 7005 | -4/Factory | Identified exit to Upper Caves 7029 | -4/Factory | System corruption reached 10% 7077 | -4/Factory | Lost 3 parts (1n2u) 7224 | -4/Factory | Entered Upper Caves 7252 | -4/Upper Caves | Lost 3 parts (3w) 7343 | -4/Upper Caves | Learned location of Armory (-4) 7384 | -4/Upper Caves | Build established: Scavenger-Mutant 7508 | -4/Upper Caves | Learned Research terminal intel 7707 | -4/Upper Caves | Build established: Scavenger-Skirmisher 8085 | -4/Upper Caves | Discovered new exit (range 10) 8100 | -4/Upper Caves | Identified exit to Upper Caves 8103 | -4/Upper Caves | Entered another Upper Caves area 8108 | -4/Upper Caves | Attracted the attention of an 0b10 checkpoint 8439 | -4/Upper Caves | Learned Research stockpile data 8740 | -4/Upper Caves | Activated DRS Beacon 8775 | -4/Upper Caves | Lost 3 parts (2n1u) 9046 | -4/Upper Caves | Build established: Skirmisher 9272 | -4/Upper Caves | Discovered new exit (range 6) 9299 | -4/Upper Caves | Identified exit to Warlord 9300 | -4/Upper Caves | Entered Warlord 9391 | -4/Warlord | System corruption cleaned by Quarantine Array 10237 | -4/Warlord | Warlord's base attacked by MAIN.C 10280 | -4/Warlord | Met EX-DEC 10292 | -4/Warlord | Found Prototype Energy Cannon 10292 | -4/Warlord | Identified Vortex Driver 10305 | -4/Warlord | Found Prototype Energy Gun 10305 | -4/Warlord | Identified Vortex Shotgun 10317 | -4/Warlord | Found Vortex Driver 10326 | -4/Warlord | Found Prototype Launcher 10587 | -4/Warlord | Warlord forces counterattacked 10912 | -4/Warlord | Warlord base infiltrated, sounded retreat 11010 | -4/Warlord | Discovered new exit (range 11) 11066 | -4/Warlord | Identified exit to Proximity Caves 11068 | -4/Warlord | Entered Proximity Caves 11071 | -3/Proximity Caves | Spotter reported a threat 11326 | -3/Proximity Caves | Build established: Scavenger-Skirmisher 11646 | -3/Proximity Caves | Discovered new exit (range 10) 11657 | -3/Proximity Caves | Identified exit to Research 11679 | -3/Proximity Caves | Entered Research 11679 | -3/Research | Evolved 2 slots: Power x1, Weapon x1 11681 | -3/Research | Loaded intel: 24 terminal locations 11976 | -3/Research | Build established: Scavenger-Assassin 12030 | -3/Research | Spotted B-86 Titan 12155 | -3/Research | Lost 5 parts (1p2n2w) 12240 | -3/Research | Loaded intel: 5 recycling unit locations 12399 | -3/Research | Identified Vortex Catalyst Activator 12434 | -3/Research | Lost 17 parts (2p6n4u5w) 12646 | -3/Research | System corruption reached 10% 12676 | -3/Research | Lost 3 parts (2n1u) 12729 | -3/Research | Build established: Scavenger-Skirmisher 12817 | -3/Research | System corruption reached 30% 12913 | -3/Research | Core integrity fell below 50% 12950 | -3/Research | Core integrity fell below 20% 12956 | -3/Research | Lost 27 parts (3p12n9u3w) 12966 | -3/Research | Discovered new exit (range 5) 12972 | -3/Research | Identified exit to Research 12973 | -3/Research | Entered another Research area 12973 | -2/Research | Evolved 2 slots: Utility x2 13169 | -2/Research | Core integrity fell below 50% 13176 | -2/Research | Core integrity fell below 20% 13192 | -2/Research | Spotted B-90 Cyclops 13209 | -2/Research | Lost 14 parts (6n4u4w) 13266 | -2/Research | Build established: Mutant 13291 | -2/Research | Destroyed by H-88 Terminator with KE Penetrator Last Messages --------------- 13234_ ALERT: Potential suspicious activity detected, Programmers report to Research Zone 1F. 13236_ Acquired Adv. Transmission Jammer. 13242_ Acquired Centrium Leg+. 13245_ Slug penetrates Wall. 13245_ Drone sends a signal. 13246_ Slug penetrates Wall. 13250_ Drone sends a signal. 13250_ Slug penetrates Wall. 13252_ H-88 Terminator retrieves Drone. 13252_ Slug penetrates Wall. 13252_ W-44 Eye sends out distress signal. 13267_ ALERT: Suspicious intruders detected, dispatching Specialist reinforcements to area. 13271_ Slug penetrates P-80 Master. 13274_ Penetrated by Slug. 13288_ Lgt. Quantum Reactor destroyed. 13291_ Penetrated by Slug. [Achievement: Tester] Map ----- +----------------------------------------------------+ | | | | | | | ?????????????????????????????????????????????????? | | ?????????????????????????????????????????????????? | | ?????????????????????????????????????????????????? | | ??????? ?????????????????????????????????????????? | | ??????? ????????????????????????????????????????? | | ??????? ????????????????????????????????????????? | | ?????##/#????????????????????????????????????????? | | ?????! ????????????????????????????????????????? | | ????? ????????????????????????????????????????? | | ????? =????????????????????????????????????????? | | ????? ????????????????????????????????????????? | | ###### #????????????????????????????????????????? | | # #????????????????????????????????????????? | | # #??????????????????####??????????????????? | | # #?????????????????? #??????????????????? | | ]# #?????????????????? #??????????????????? | | # #?????????????????? +??????????????????? | | # #????????????????? #??????????????????? | | # #????????????????? #??????????????????? | | ?# #????????????????? #??????????????????? | | #+#### #############+#### ###+##########?????? | | hh h ??? | | g p @ ??? | | g ??? | | k ??? | | ###############+### ##################+###????? | | ????????????? # #?????? #????????????? | | ????????????# ! # #???? #????????????? | | ????????????# # ^ #?? #????????????? | | ????????????# # # #????????????? | | ????????????# # + #????????????? | | ????????????# # # #????????????? | | ????????????# # #?? #????????????? | | ????????????# =# #???? #????????????? | | ????????????####### #?????? #????????????? | | ?????????????????? #???????? #????????????? | | ????????????????? #?????????? #????????????? | | ???????????????? +????????????#????????????? | | ??????????????? #?????????????????????????? | | ??????????????######+#+#?????????????????????????? | | ?????????????????????????????????????????????????? | | ?????????????????????????????????????????????????? | | ?????????????????????????????????????????????????? | | ?????????????????????????????????????????????????? | | ?????????????????????????????????????????????????? | | ?????????????????????????????????????????????????? | | ?????????????????????????????????????????????????? | +----------------------------------------------------+ Best States ------------- Heat Dissipation 96 Coolant Potential 80 Energy Generation 26 Energy Capacity 575 Matter Stores 300 Matter Capacity 300 Sight Range 22 Robot Scan Range 15 Terrain Scan Range 20 Terrain Scan Density 310 Jamming Range 16 Armor Coverage 1200 Resistance: EX 50 Resistance: EM 20 Core Shielding 30 Evasion (%) 70 Targeting Accuracy 6 Recoil Reduction 4 Offensive Hacking 10 Item Schematics ----------------- None Robot Schematics ------------------ R-06 Scavenger | -9/Recycling | Hacked Fabricated ------------ Nothing Repaired ---------- Nothing Studied --------- EM Shotgun | -9/Materials | Hacked Arm. Wheel | -6/Factory | Hacked Centrium Leg | -2/Research | Hacked Alien Tech Used ----------------- None Achievements -------------- Tester Challenges ------------ None Game ------ Seed AssembledAuthchipHarness Manual? 0 Play Time 01:57:33 Cumulative 70.7 hours Start 2026.07.11 @ 09:58:49 End 2026.07.13 @ 16:15:32 Sessions 5 Manual Loads 0 Difficulty Rogue Special Mode None Game No. 80 Rogue 64 Adventurer 16 Explorer 0 Win Type - Total 1 Types 1/0/0/0/0/0/0/0/0/0 Lore% 54 Gallery% 50 Achievement% 35 Wizard Run 0 Options --------- Layout 1 ASCII 0 Keyboard 1 Movement Vi Keybinds 0 Fullscreen 1 Font 24/Tamsyn Map View 50x35 Zoom Use 0% Tactical HUD 1 Map Filters NONE Filters NONE Steam 1 RUN: fc1316c8-e598-4db8-8019-c7a38d36f345